[Event "11th LCC Super Blitz 2019"]
[Site "London"]
[Date "2019.12.08"]
[Round "8.3"]
[White "Maze, Sebastien"]
[Black "Rowson, Jonathan"]
[Result "1/2-1/2"]
[ECO "D15"]
[WhiteElo "2549"]
[BlackElo "2561"]
[Annotator "ChessBase"]
[PlyCount "142"]
[EventDate "2019.12.08"]
[EventType "swiss"]
[EventCountry "ENG"]
[SourceTitle "playchess.com"]
[Source "ChessBase"]
[SourceQuality "1"]
[TimeControl "180+2"]

1. Nf3 {[%emt 0:02:39]} d5 {[%emt 0:00:02]} 2. e3 {[%emt 0:00:02]} Nf6 {[%emt 0:00:02]} 3. c4 c6 {[%emt 0:00:01]} 4. Nc3 {[%emt 0:00:03]} a6 {[%emt 0:00:10]} 5. d4 {[%emt 0:00:01]} b5 {[%emt 0:00:02]} 6. c5 {[%emt 0:00:07]} Bg4 {[%emt 0:00:04]} 7. h3 {[%emt 0:00:08]} Bxf3 {[%emt 0:00:01]} 8. gxf3 {[%emt 0:00:05]} g6 {[%emt 0:00:14]} 9. f4 {[%emt 0:00:01]} a5 {[%emt 0:00:03]} 10. Nxb5 {[%emt 0:00:21]} cxb5 {[%emt 0:00:15]} 11. Bxb5+ Nbd7 {[%emt 0:00:17]} 12. c6 {[%emt 0:00:01]} Bg7 {[%emt 0:00:02]} 13. cxd7+ {[%emt 0:00:02]} Nxd7 {[%emt 0:00:06]} 14. Bc6 {[%emt 0:00:23]} Rb8 {[%emt 0:00:24]} 15. Bxd5 {[%emt 0:00:02]} O-O {[%emt 0:00:01]} 16. O-O {[%emt 0:00:01]} a4 {[%emt 0:00:14]} 17. Bg2 {[%emt 0:00:04]} Nb6 {[%emt 0:00:08]} 18. Bd2 {[%emt 0:00:04]} Nc4 {[%emt 0:00:04]} 19. Bc3 Qd7 {[%emt 0:00:11]} 20. b3 {[%emt 0:00:12]} Nd6 {[%emt 0:00:11]} 21. bxa4 {[%emt 0:00:04]} Rfc8 {[%emt 0:00:03]} 22. Bd2 {[%emt 0:00:09]} Nf5 {[%emt 0:00:02]} 23. Rb1 {[%emt 0:00:26]} Nh4 {[%emt 0:00:07]} 24. Rxb8 {[%emt 0:00:19]} Rxb8 25. Qg4 {[%emt 0:00:01]} Nf5 {[%emt 0:00:10]} 26. Rc1 {[%emt 0:00:21]} Qxa4 {[%emt 0:00:10]} 27. Qd1 {[%emt 0:00:12]} Qxa2 {[%emt 0:00:05]} 28. Ra1 {[%emt 0:00:04]} Qb2 {[%emt 0:00:04]} 29. Ra8 {[%emt 0:00:06]} Rxa8 {[%emt 0:00:05]} 30. Bxa8 {[%emt 0:00:02]} e6 {[%emt 0:00:04]} 31. Qc1 {[%emt 0:00:08]} Qb8 {[%emt 0:00:12]} 32. Be4 {[%emt 0:00:13]} Nd6 {[%emt 0:00:01]} 33. Bf3 {[%emt 0:00:05]} Bf8 {[%emt 0:00:02]} 34. Bc3 {[%emt 0:00:07]} Nf5 {[%emt 0:00:03]} 35. d5 {[%emt 0:00:04]} Nh4 {[%emt 0:00:06]} 36. Bh1 {[%emt 0:00:03]} exd5 {[%emt 0:00:07]} 37. Bf6 {[%emt 0:00:02]} Nf5 {[%emt 0:00:05]} 38. Bxd5 {[%emt 0:00:05]} Qd6 39. Qc6 Qxc6 {[%emt 0:00:08]} 40. Bxc6 {[%emt 0:00:01]} Be7 41. Bc3 {[%emt 0:00:01]} Kf8 {[%emt 0:00:02]} 42. Bd5 {[%emt 0:00:03]} Bd6 {[%emt 0:00:01]} 43. Kf1 Ne7 44. Bb3 {[%emt 0:00:02]} Nc6 {[%emt 0:00:01]} 45. Ke2 Ke7 {[%emt 0:00:02]} 46. Kf3 {[%emt 0:00:03]} Bb4 {[%emt 0:00:02]} 47. Bb2 Na5 {[%emt 0:00:02]} 48. Bd5 {[%emt 0:00:01]} f5 {[%emt 0:00:03]} 49. Bg8 {[%emt 0:00:02]} h6 {[%emt 0:00:02]} 50. Bd5 Kd6 {[%emt 0:00:06]} 51. Bf7 g5 52. Be5+ {[%emt 0:00:03]} Ke7 53. Bd5 {[%emt 0:00:01]} Bd6 {[%emt 0:00:02]} 54. Ke2 {[%emt 0:00:02]} gxf4 {[%emt 0:00:02]} 55. exf4 {[%emt 0:00:01]} Bc5 {[%emt 0:00:06]} 56. f3 {[%emt 0:00:01]} Bb6 {[%emt 0:00:03]} 57. Kd3 Kd7 58. Bd4 {[%emt 0:00:03]} Bxd4 {[%emt 0:00:03]} 59. Kxd4 Kd6 60. h4 {[%emt 0:00:02]} h5 61. Bf7 Nc6+ 62. Ke3 {[%emt 0:00:01]} Ke7 {[%emt 0:00:04]} 63. Bxh5 {[%emt 0:00:01]} Nd8 {[%emt 0:00:03]} 64. Bg6 {[%emt 0:00:01]} Kf6 65. Be8 Ne6 {[%emt 0:00:01]} 66. Bd7 {[%emt 0:00:01]} Ng7 67. Bc8 {[%emt 0:00:01]} Nh5 68. Bd7 {[%emt 0:00:01]} Ng7 69. Bb5 {[%emt 0:00:01]} Nh5 {[%emt 0:00:01]} 70. Bd3 {[%emt 0:00:03]} Ng7 {[%emt 0:00:02]} 71. Bc4 {[%emt 0:00:11]} Nh5 {[%emt 0:00:02]} 1/2-1/2

[Event "11th LCC Super Blitz 2019"]
[Site "London"]
[Date "2019.12.08"]
[Round "8.3"]
[White "Klingher, Dominic"]
[Black "Arkell, Keith C"]
[Result "1-0"]
[ECO "A00"]
[WhiteElo "2071"]
[BlackElo "2453"]
[Annotator "ChessBase"]
[PlyCount "67"]
[EventDate "2019.12.08"]
[EventType "swiss"]
[EventCountry "ENG"]
[SourceTitle "playchess.com"]
[Source "ChessBase"]
[SourceQuality "1"]
[TimeControl "180+2"]

1. e4 {[%emt 0:00:00]} d5 {[%emt 0:00:01]} 2. Nc3 {[%emt 0:00:00]} dxe4 {[%emt 0:00:01]} 3. Nxe4 {[%emt 0:00:03]} Nf6 {[%emt 0:00:01]} 4. Qe2 {[%emt 0:00:12]} Nxe4 {[%emt 0:00:01]} 5. Qxe4 {[%emt 0:00:01]} c6 {[%emt 0:00:06]} 6. Bc4 {[%emt 0:00:05]} Nd7 {[%emt 0:00:05]} 7. Nf3 {[%emt 0:00:07]} Nf6 {[%emt 0:00:13]} 8. Qe2 {[%emt 0:00:03]} e6 {[%emt 0:00:20]} 9. d4 {[%emt 0:00:02]} Be7 {[%emt 0:00:02]} 10. Bg5 {[%emt 0:00:08]} Qa5+ {[%emt 0:00:01]} 11. c3 {[%emt 0:00:09]} O-O {[%emt 0:00:05]} 12. O-O {[%emt 0:00:23]} Qc7 {[%emt 0:00:04]} 13. Ne5 {[%emt 0:00:04]} b6 {[%emt 0:00:01]} 14. Rae1 {[%emt 0:00:08]} c5 {[%emt 0:00:02]} 15. Bd3 {[%emt 0:00:16]} Bb7 {[%emt 0:00:09]} 16. dxc5 {[%emt 0:00:24]} Qxc5 {[%emt 0:00:07]} 17. Bxf6 {[%emt 0:00:13]} Bxf6 {[%emt 0:00:03]} 18. Nd7 {[%emt 0:00:07]} Qc6 {[%emt 0:00:01]} 19. Nxf6+ {[%emt 0:00:21]} gxf6 {[%emt 0:00:01]} 20. Qg4+ {[%emt 0:00:18]} Kh8 {[%emt 0:00:01]} 21. Be4 {[%emt 0:00:04]} Qc7 {[%emt 0:00:51]} 22. Qh4 {[%emt 0:00:03]} f5 {[%emt 0:00:28]} 23. Qf6+ {[%emt 0:00:02]} Kg8 {[%emt 0:00:00]} 24. Bxb7 {[%emt 0:00:08]} Qxb7 {[%emt 0:00:01]} 25. Re3 {[%emt 0:00:01]} f4 {[%emt 0:00:01]} 26. Re5 {[%emt 0:00:03]} h6 {[%emt 0:00:02]} 27. Rh5 {[%emt 0:00:15]} Qe4 {[%emt 0:00:30]} 28. Qxh6 {[%emt 0:00:01]} f6 {[%emt 0:00:05]} 29. Qh8+ {[%emt 0:00:02]} Kf7 {[%emt 0:00:01]} 30. Rh7+ {[%emt 0:00:03]} Ke8 31. Qg7 {[%emt 0:00:03]} Qxh7 {[%emt 0:00:04]} 32. Qxh7 {[%emt 0:00:01]} Rd8 {[%emt 0:00:03]} 33. Re1 {[%emt 0:00:03]} Rf7 {[%emt 0:00:01]} 34. Rxe6+ {[%emt 0:00:02]} 1-0

[Event "11th LCC Super Blitz 2019"]
[Site "London"]
[Date "2019.12.08"]
[Round "8.4"]
[White "Orlovska, Madara"]
[Black "Wallace, John Paul"]
[Result "0-1"]
[ECO "B07"]
[WhiteElo "2072"]
[BlackElo "2344"]
[Annotator "NA"]
[PlyCount "64"]
[EventDate "2019.12.08"]
[EventType "swiss"]
[EventCountry "ENG"]
[SourceTitle "playchess.com"]
[Source "ChessBase"]
[SourceQuality "1"]
[TimeControl "180+2"]

1. d4 {[%emt 0:00:00]} Nf6 {[%emt 0:00:00]} 2. Nc3 {[%emt 0:00:02]} d6 {[%emt 0:00:00]} 3. e4 {[%emt 0:00:01]} Nbd7 {[%emt 0:00:02]} 4. Be3 {[%emt 0:00:03]} e5 {[%emt 0:00:02]} 5. d5 {[%emt 0:00:02]} g6 {[%emt 0:00:03]} 6. f3 {[%emt 0:00:04]} Bg7 {[%emt 0:00:03]} 7. Qd2 {[%emt 0:00:01]} a6 {[%emt 0:00:03]} 8. g4 {[%emt 0:00:03]} h5 {[%emt 0:00:04]} 9. gxh5 {[%emt 0:00:06]} Nxh5 {[%emt 0:00:01]} 10. Nce2 {[%emt 0:00:14]} Qh4+ {[%emt 0:00:13]} 11. Bf2 {[%emt 0:00:01]} Qf6 {[%emt 0:00:02]} 12. h4 {[%emt 0:00:13]} Bh6 {[%emt 0:00:02]} 13. Be3 {[%emt 0:00:01]} Bxe3 {[%emt 0:00:04]} 14. Qxe3 {[%emt 0:00:01]} Nf4 {[%emt 0:00:08]} 15. Qf2 {[%emt 0:00:36]} Nc5 {[%emt 0:00:05]} 16. Nxf4 {[%emt 0:00:19]} Qxf4 {[%emt 0:00:13]} 17. Ne2 {[%emt 0:00:09]} Qh6 {[%emt 0:00:09]} 18. b4 {[%emt 0:00:18]} Na4 {[%emt 0:00:08]} 19. f4 {[%emt 0:00:08]} exf4 {[%emt 0:00:29]} 20. Qxf4 {[%emt 0:00:01]} Qg7 {[%emt 0:00:02]} 21. Rb1 {[%emt 0:00:06]} Bd7 {[%emt 0:00:11]} 22. c4 {[%emt 0:00:15]} O-O-O {[%emt 0:00:10]} 23. Bh3 {[%emt 0:00:07]} f5 {[%emt 0:00:23]} 24. Kd2 {[%emt 0:00:14]} Rhe8 {[%emt 0:00:07]} 25. Ng3 {[%emt 0:00:06]} Qc3+ {[%emt 0:00:05]} 26. Kd1 {[%emt 0:00:06]} Qd3+ {[%emt 0:00:14]} 27. Kc1 {[%emt 0:00:05]} Qxc4+ {[%emt 0:00:02]} 28. Kd1 {[%emt 0:00:01]} Qd3+ {[%emt 0:00:01]} 29. Kc1 {[%emt 0:00:00]} Qc3+ {[%emt 0:00:12]} 30. Kd1 {[%emt 0:00:01]} Nb2+ {[%emt 0:00:01]} 31. Rxb2 {[%emt 0:00:06]} Qxb2 {[%emt 0:00:02]} 32. exf5 {[%emt 0:00:02]} Ba4# {[%emt 0:00:11] Qd4} 0-1

[Event "11th LCC Super Blitz 2019"]
[Site "London"]
[Date "2019.12.08"]
[Round "8.4"]
[White "Zulfic, Fedja"]
[Black "Cox, John J"]
[Result "1-0"]
[ECO "A61"]
[WhiteElo "2032"]
[BlackElo "2346"]
[Annotator "NA"]
[PlyCount "69"]
[EventDate "2019.12.08"]
[EventType "swiss"]
[EventCountry "ENG"]
[SourceTitle "playchess.com"]
[Source "ChessBase"]
[SourceQuality "1"]
[TimeControl "180+2"]

1. d4 {[%emt 0:00:00]} Nf6 {[%emt 0:00:04]} 2. Nf3 {[%emt 0:00:00]} c5 {[%emt 0:00:01]} 3. d5 {[%emt 0:00:03]} e6 {[%emt 0:00:03]} 4. c4 {[%emt 0:00:01]} exd5 {[%emt 0:00:01]} 5. cxd5 {[%emt 0:00:01]} d6 {[%emt 0:00:01]} 6. Nc3 {[%emt 0:00:02]} g6 {[%emt 0:00:00]} 7. h3 {[%emt 0:00:01]} Bg7 {[%emt 0:00:02]} 8. e4 {[%emt 0:00:02]} a6 {[%emt 0:00:02]} 9. a4 {[%emt 0:00:02]} Nbd7 10. Bf4 {[%emt 0:00:12]} Qe7 {[%emt 0:00:21]} 11. Bd3 {[%emt 0:00:09]} Nh5 {[%emt 0:00:01]} 12. Bh2 {[%emt 0:00:11]} Ne5 {[%emt 0:00:01]} 13. Be2 {[%emt 0:00:09]} Rb8 {[%emt 0:00:18]} 14. O-O {[%emt 0:00:02]} Nxf3+ {[%emt 0:00:11]} 15. Bxf3 {[%emt 0:00:02]} Nf6 {[%emt 0:00:01]} 16. e5 {[%emt 0:00:18]} dxe5 {[%emt 0:00:14]} 17. Bxe5 {[%emt 0:00:02]} Ra8 {[%emt 0:00:08]} 18. d6 {[%emt 0:00:13]} Qd8 {[%emt 0:00:01]} 19. Nd5 {[%emt 0:01:20]} O-O {[%emt 0:00:07]} 20. Ne7+ {[%emt 0:00:04]} Kh8 {[%emt 0:00:02]} 21. Rc1 {[%emt 0:00:04]} Nd7 {[%emt 0:00:18]} 22. Bxg7+ {[%emt 0:00:06]} Kxg7 {[%emt 0:00:01]} 23. Qb3 {[%emt 0:00:10]} Rb8 {[%emt 0:00:13]} 24. Rfd1 {[%emt 0:00:02]} Ne5 {[%emt 0:00:41]} 25. Qc3 {[%emt 0:00:01]} f6 {[%emt 0:00:03]} 26. Be2 {[%emt 0:00:08]} Bd7 {[%emt 0:00:06]} 27. f4 {[%emt 0:00:02]} Nf7 {[%emt 0:00:07]} 28. g4 {[%emt 0:00:04]} Bxa4 {[%emt 0:00:01]} 29. g5 {[%emt 0:00:02]} Nxd6 {[%emt 0:00:16]} 30. gxf6+ {[%emt 0:00:14]} Rxf6 {[%emt 0:00:14]} 31. Nd5 {[%emt 0:00:02]} Bxd1 {[%emt 0:00:01]} 32. Rxd1 {[%emt 0:00:01]} Ne4 {[%emt 0:00:18]} 33. Qe5 {[%emt 0:00:01]} Ng3 {[%emt 0:00:01]} 34. Bc4 {[%emt 0:00:05]} Nf5 {[%emt 0:00:03]} 35. Bb3 {[%emt 0:00:06]} 1-0

[Event "11th LCC Super Blitz 2019"]
[Site "London"]
[Date "2019.12.08"]
[Round "8.4"]
[White "Brass, Ezra"]
[Black "Willow, Jonah B"]
[Result "0-1"]
[ECO "B22"]
[WhiteElo "1628"]
[BlackElo "2355"]
[Annotator "NA"]
[PlyCount "100"]
[EventDate "2019.12.08"]
[EventType "swiss"]
[EventCountry "ENG"]
[SourceTitle "playchess.com"]
[Source "ChessBase"]
[SourceQuality "1"]
[TimeControl "180+2"]

1. e4 {[%emt 0:00:00]} c5 {[%emt 0:00:00]} 2. c3 {[%emt 0:00:02]} Nf6 {[%emt 0:00:02]} 3. e5 {[%emt 0:00:02]} Nd5 {[%emt 0:00:02]} 4. d4 cxd4 5. cxd4 {[%emt 0:00:04]} g6 {[%emt 0:00:04]} 6. Nf3 {[%emt 0:00:02]} Bg7 {[%emt 0:00:02]} 7. Nc3 {[%emt 0:00:02]} Nxc3 8. bxc3 {[%emt 0:00:02]} O-O {[%emt 0:00:04]} 9. Bd3 {[%emt 0:00:00]} d6 10. exd6 Qxd6 {[%emt 0:00:00]} 11. O-O {[%emt 0:00:03]} Nc6 {[%emt 0:00:00]} 12. Re1 {[%emt 0:00:03]} Bg4 {[%emt 0:00:01]} 13. Be2 {[%emt 0:00:02]} Rfd8 {[%emt 0:00:08]} 14. h3 {[%emt 0:00:03]} Bxf3 15. Bxf3 {[%emt 0:00:01]} e5 {[%emt 0:00:04]} 16. d5 {[%emt 0:00:07]} Ne7 {[%emt 0:00:06]} 17. Bb2 {[%emt 0:00:18]} Nxd5 {[%emt 0:00:10]} 18. c4 {[%emt 0:00:05]} Nf4 {[%emt 0:00:59]} 19. Qxd6 {[%emt 0:00:07]} Rxd6 {[%emt 0:00:00]} 20. Bxe5 {[%emt 0:00:04]} Bxe5 21. Rxe5 {[%emt 0:00:02]} Rc8 {[%emt 0:00:09]} 22. g3 {[%emt 0:00:32]} Nd3 {[%emt 0:00:09]} 23. Rd5 {[%emt 0:00:07]} Rxd5 {[%emt 0:00:08]} 24. cxd5 {[%emt 0:00:02]} Ne5 {[%emt 0:00:20]} 25. Bg2 {[%emt 0:00:06]} Nc4 {[%emt 0:00:03]} 26. Rc1 {[%emt 0:00:09]} Kf8 {[%emt 0:00:05]} 27. Bf1 {[%emt 0:00:12]} Nd6 {[%emt 0:00:01]} 28. Rxc8+ Nxc8 29. f4 {[%emt 0:00:13]} Ke7 {[%emt 0:00:04]} 30. Kf2 {[%emt 0:00:05]} Kd6 {[%emt 0:00:01]} 31. Bc4 {[%emt 0:00:12]} Nb6 {[%emt 0:00:01]} 32. Bb3 {[%emt 0:00:07]} Nxd5 {[%emt 0:00:01]} 33. Kf3 {[%emt 0:00:02]} f6 {[%emt 0:00:22]} 34. g4 {[%emt 0:00:08]} g5 {[%emt 0:00:04]} 35. fxg5 fxg5 {[%emt 0:00:01]} 36. Bc2 {[%emt 0:00:30]} h6 {[%emt 0:00:01]} 37. Bd3 {[%emt 0:00:08]} Nf4 {[%emt 0:00:02]} 38. Bf1 {[%emt 0:00:02]} Ke5 {[%emt 0:00:02]} 39. Ke3 {[%emt 0:00:03]} b6 {[%emt 0:00:07]} 40. Kd2 {[%emt 0:00:03]} Kd4 {[%emt 0:00:02]} 41. Kc2 {[%emt 0:00:04]} Ke3 {[%emt 0:00:02]} 42. Kb3 {[%emt 0:00:13]} Kf2 {[%emt 0:00:04]} 43. Bc4 {[%emt 0:00:02]} Nxh3 {[%emt 0:00:21]} 44. Ka4 {[%emt 0:00:02]} Ke3 {[%emt 0:00:04]} 45. Kb5 {[%emt 0:00:03]} Kd4 {[%emt 0:00:01]} 46. Be6 {[%emt 0:00:04]} Nf4 {[%emt 0:00:01]} 47. Bf5 {[%emt 0:00:08]} Ke5 {[%emt 0:00:06]} 48. Ka6 {[%emt 0:00:02]} h5 {[%emt 0:00:01]} 49. Kxa7 {[%emt 0:00:05]} h4 {[%emt 0:00:01]} 50. Kxb6 {[%emt 0:00:08]} h3 {[%emt 0:00:04]} 0-1

[Event "11th LCC Super Blitz 2019"]
[Site "London"]
[Date "2019.12.08"]
[Round "8.5"]
[White "Ratnesan, Ranesh"]
[Black "Bird, Joel"]
[Result "1-0"]
[ECO "A07"]
[WhiteElo "2213"]
[BlackElo "2009"]
[Annotator "NA"]
[PlyCount "75"]
[EventDate "2019.12.08"]
[EventType "swiss"]
[EventCountry "ENG"]
[SourceTitle "playchess.com"]
[Source "ChessBase"]
[SourceQuality "1"]
[TimeControl "180+2"]

1. Nf3 {[%emt 0:00:00]} d5 {[%emt 0:00:00]} 2. g3 {[%emt 0:00:02]} Nf6 {[%emt 0:00:00]} 3. Bg2 {[%emt 0:00:02]} c6 {[%emt 0:00:03]} 4. d3 {[%emt 0:00:01]} Bg4 {[%emt 0:00:02]} 5. Ne5 {[%emt 0:00:02]} Nbd7 {[%emt 0:00:17]} 6. Nxg4 {[%emt 0:00:01]} Nxg4 {[%emt 0:00:01]} 7. O-O {[%emt 0:00:08]} Ngf6 {[%emt 0:00:04]} 8. c4 {[%emt 0:00:02]} e6 {[%emt 0:00:01]} 9. cxd5 {[%emt 0:00:02]} cxd5 {[%emt 0:00:05]} 10. Nc3 {[%emt 0:00:02]} Be7 {[%emt 0:00:05]} 11. e4 {[%emt 0:00:05]} dxe4 {[%emt 0:00:05]} 12. dxe4 {[%emt 0:00:01]} O-O {[%emt 0:00:35]} 13. Qe2 {[%emt 0:00:01]} Nc5 {[%emt 0:00:18]} 14. Rd1 {[%emt 0:00:01]} Qb6 {[%emt 0:00:03]} 15. Be3 {[%emt 0:00:01]} Qa6 {[%emt 0:00:25]} 16. Qxa6 {[%emt 0:00:07]} Nxa6 {[%emt 0:00:17]} 17. e5 {[%emt 0:00:00]} Nd5 {[%emt 0:00:13]} 18. Nxd5 exd5 {[%emt 0:00:02]} 19. Bxd5 {[%emt 0:00:04]} Nc5 {[%emt 0:00:08]} 20. b4 {[%emt 0:00:07]} Na4 {[%emt 0:00:14]} 21. a3 {[%emt 0:00:12]} Nc3 {[%emt 0:00:19]} 22. Rd3 {[%emt 0:00:01]} Nxd5 {[%emt 0:00:06]} 23. Rxd5 {[%emt 0:00:01]} Rfd8 {[%emt 0:00:01]} 24. Rad1 {[%emt 0:00:01]} b6 {[%emt 0:00:08]} 25. Rd7 {[%emt 0:00:09]} Kf8 {[%emt 0:00:01]} 26. Kg2 {[%emt 0:00:06]} Ke8 {[%emt 0:00:00]} 27. Rxd8+ {[%emt 0:00:07]} Rxd8 {[%emt 0:00:05]} 28. Rxd8+ {[%emt 0:00:07]} Kxd8 {[%emt 0:00:02]} 29. Kf3 {[%emt 0:00:02]} Kc7 {[%emt 0:00:00]} 30. Ke4 {[%emt 0:00:01]} a6 {[%emt 0:00:02]} 31. Kd5 {[%emt 0:00:04]} Bd8 {[%emt 0:00:08]} 32. a4 {[%emt 0:00:07]} Be7 {[%emt 0:00:08]} 33. b5 {[%emt 0:00:01]} axb5 {[%emt 0:00:01]} 34. axb5 {[%emt 0:00:02]} Bd8 {[%emt 0:00:03]} 35. e6 {[%emt 0:00:03]} fxe6+ {[%emt 0:00:03]} 36. Kxe6 {[%emt 0:00:01]} Bf6 {[%emt 0:00:02]} 37. Bf4+ {[%emt 0:00:03]} Kb7 {[%emt 0:00:04]} 38. Be5 {[%emt 0:00:07]} 1-0

[Event "11th LCC Super Blitz 2019"]
[Site "London"]
[Date "2019.12.08"]
[Round "8.5"]
[White "Ismail, Mohammed Aayan"]
[Black "Gudenas, Motiejus"]
[Result "1/2-1/2"]
[ECO "A58"]
[WhiteElo "1641"]
[BlackElo "1993"]
[Annotator "NA"]
[PlyCount "73"]
[EventDate "2019.12.08"]
[EventType "swiss"]
[EventCountry "ENG"]
[SourceTitle "playchess.com"]
[Source "ChessBase"]
[SourceQuality "1"]
[TimeControl "180+2"]

1. d4 {[%emt 0:00:00]} Nf6 {[%emt 0:00:00]} 2. c4 {[%emt 0:00:00]} c5 {[%emt 0:00:00]} 3. d5 {[%emt 0:00:00]} b5 {[%emt 0:00:01]} 4. cxb5 {[%emt 0:00:13]} a6 {[%emt 0:00:01]} 5. e3 {[%emt 0:00:12]} g6 {[%emt 0:00:08]} 6. Nc3 {[%emt 0:00:03]} Bg7 {[%emt 0:00:05]} 7. Nf3 {[%emt 0:00:01]} O-O {[%emt 0:00:04]} 8. bxa6 {[%emt 0:00:21]} Bxa6 {[%emt 0:00:05]} 9. Bxa6 {[%emt 0:00:02]} Nxa6 {[%emt 0:00:01]} 10. O-O {[%emt 0:00:05]} d6 {[%emt 0:00:01]} 11. a3 {[%emt 0:00:05]} Qb6 {[%emt 0:00:34]} 12. Qe2 {[%emt 0:00:12]} Ng4 {[%emt 0:00:11]} 13. h3 {[%emt 0:00:14]} Ne5 {[%emt 0:00:01]} 14. Nxe5 {[%emt 0:00:06]} Bxe5 {[%emt 0:00:02]} 15. Qc2 {[%emt 0:00:18]} Nb4 {[%emt 0:00:23]} 16. Qb3 {[%emt 0:00:31]} Rfb8 {[%emt 0:00:42]} 17. Na4 {[%emt 0:00:03]} Rxa4 {[%emt 0:00:19]} 18. Qxa4 {[%emt 0:00:02]} Nxd5 {[%emt 0:00:03]} 19. Qc4 {[%emt 0:00:10]} e6 {[%emt 0:00:08]} 20. Rb1 {[%emt 0:00:01]} Qc6 {[%emt 0:00:05]} 21. Bd2 {[%emt 0:00:19]} Nb6 {[%emt 0:00:07]} 22. Qc2 {[%emt 0:00:06]} d5 {[%emt 0:00:06]} 23. Bc3 {[%emt 0:00:05]} Nc4 {[%emt 0:00:02]} 24. Bxe5 {[%emt 0:00:03]} Nxe5 {[%emt 0:00:01]} 25. b3 {[%emt 0:00:11]} Ra8 {[%emt 0:00:06]} 26. Rfc1 {[%emt 0:00:08]} Nd7 {[%emt 0:00:06]} 27. a4 {[%emt 0:00:03]} Rb8 {[%emt 0:00:03]} 28. Qc3 {[%emt 0:00:01]} Qa6 {[%emt 0:00:06]} 29. Qd2 {[%emt 0:00:07]} Rb4 {[%emt 0:00:04]} 30. Rc3 {[%emt 0:00:05]} Qb6 {[%emt 0:00:03]} 31. Qc2 {[%emt 0:00:02]} h5 {[%emt 0:00:04]} 32. Ra1 {[%emt 0:00:04]} Qa5 {[%emt 0:00:02]} 33. Rc1 {[%emt 0:00:01]} Qb6 {[%emt 0:00:04]} 34. Ra1 {[%emt 0:00:01]} Qa5 {[%emt 0:00:01]} 35. Rc1 {[%emt 0:00:01]} Qb6 {[%emt 0:00:00]} 36. Ra1 {[%emt 0:00:01]} Qa5 {[%emt 0:00:01]} 37. Rc1 {[%emt 0:00:03]} 1/2-1/2

[Event "11th LCC Super Blitz 2019"]
[Site "London"]
[Date "2019.12.08"]
[Round "8.5"]
[White "Toh, Q Kane"]
[Black "Balaji, Aaravamudhan"]
[Result "1-0"]
[ECO "E61"]
[WhiteElo "1606"]
[BlackElo "2120"]
[Annotator "NA"]
[PlyCount "129"]
[EventDate "2019.12.08"]
[EventType "swiss"]
[EventCountry "ENG"]
[SourceTitle "playchess.com"]
[Source "ChessBase"]
[SourceQuality "1"]
[TimeControl "180+2"]

1. d4 {[%emt 0:00:00]} Nf6 {[%emt 0:00:00]} 2. c4 {[%emt 0:00:00]} g6 {[%emt 0:00:00]} 3. Nc3 {[%emt 0:00:01]} Bg7 {[%emt 0:00:00]} 4. Nf3 {[%emt 0:00:04]} O-O {[%emt 0:00:00]} 5. Bg5 {[%emt 0:00:01]} d6 {[%emt 0:00:01]} 6. e3 {[%emt 0:00:01]} Nbd7 {[%emt 0:00:02]} 7. Be2 {[%emt 0:00:02]} e5 {[%emt 0:00:03]} 8. d5 {[%emt 0:00:01]} a5 {[%emt 0:00:04]} 9. Qc2 {[%emt 0:00:08]} h6 {[%emt 0:00:00]} 10. Bh4 {[%emt 0:00:01]} Nc5 {[%emt 0:00:05]} 11. O-O {[%emt 0:00:12]} Bd7 {[%emt 0:00:10]} 12. Nd2 {[%emt 0:00:10]} Qc8 {[%emt 0:00:03]} 13. e4 {[%emt 0:00:21]} Nh7 {[%emt 0:00:05]} 14. b3 {[%emt 0:00:14]} f5 {[%emt 0:00:08]} 15. f3 {[%emt 0:00:02]} f4 {[%emt 0:00:07]} 16. Bf2 {[%emt 0:00:01]} g5 {[%emt 0:00:04]} 17. a3 {[%emt 0:00:13]} h5 {[%emt 0:00:23]} 18. b4 {[%emt 0:00:04]} Na6 {[%emt 0:00:01]} 19. c5 {[%emt 0:00:42]} g4 {[%emt 0:00:40]} 20. c6 {[%emt 0:00:22]} bxc6 {[%emt 0:00:31]} 21. dxc6 {[%emt 0:00:02]} Be6 {[%emt 0:00:00]} 22. b5 {[%emt 0:00:25]} Nc5 {[%emt 0:00:04]} 23. Bxc5 {[%emt 0:00:01]} dxc5 {[%emt 0:00:00]} 24. Na4 {[%emt 0:00:17]} g3 {[%emt 0:00:23]} 25. hxg3 {[%emt 0:00:02]} fxg3 {[%emt 0:00:01]} 26. Nxc5 {[%emt 0:00:01]} Qd8 {[%emt 0:00:18]} 27. Rfd1 {[%emt 0:00:10]} Qh4 {[%emt 0:00:11]} 28. Nf1 {[%emt 0:00:01]} Bf7 {[%emt 0:00:09]} 29. Bc4 {[%emt 0:00:05]} Ng5 {[%emt 0:00:03]} 30. Bxf7+ {[%emt 0:00:06]} Rxf7 {[%emt 0:00:01]} 31. Rd7 {[%emt 0:00:02]} Raf8 {[%emt 0:00:04]} 32. Qc4 {[%emt 0:00:02]} Bh6 {[%emt 0:00:09]} 33. Rad1 {[%emt 0:00:02]} Kh8 {[%emt 0:00:11]} 34. Rxf7 {[%emt 0:00:01]} Rxf7 {[%emt 0:00:01]} 35. Rd8+ {[%emt 0:00:01]} Kg7 {[%emt 0:00:00]} 36. Rd7 {[%emt 0:00:02]} Qf4 {[%emt 0:00:03]} 37. Rxf7+ {[%emt 0:00:01]} Qxf7 {[%emt 0:00:01]} 38. Qxf7+ {[%emt 0:00:04]} Nxf7 {[%emt 0:00:04]} 39. Nd7 {[%emt 0:00:01]} Nd8 {[%emt 0:00:03]} 40. Nxe5 {[%emt 0:00:02]} Bc1 {[%emt 0:00:02]} 41. a4 {[%emt 0:00:01]} Ne6 {[%emt 0:00:02]} 42. Nc4 {[%emt 0:00:03]} Kf6 {[%emt 0:00:03]} 43. Nxg3 {[%emt 0:00:02]} h4 {[%emt 0:00:01]} 44. Ne2 {[%emt 0:00:01]} Bh6 {[%emt 0:00:03]} 45. Kf2 {[%emt 0:00:02]} Nc5 {[%emt 0:00:02]} 46. Nxa5 {[%emt 0:00:05]} Nxa4 {[%emt 0:00:01]} 47. Nb3 {[%emt 0:00:02]} Ke5 {[%emt 0:00:01]} 48. Nec1 {[%emt 0:00:04]} Nb6 {[%emt 0:00:01]} 49. Nd3+ {[%emt 0:00:01]} Kd6 {[%emt 0:00:01]} 50. f4 {[%emt 0:00:01]} Bg7 {[%emt 0:00:01]} 51. Kf3 {[%emt 0:00:01]} Nc4 {[%emt 0:00:02]} 52. e5+ {[%emt 0:00:02]} Kd5 {[%emt 0:00:01]} 53. Nb4+ {[%emt 0:00:01]} Ke6 {[%emt 0:00:01]} 54. Ke4 {[%emt 0:00:02]} Na3 {[%emt 0:00:06]} 55. Nd4+ {[%emt 0:00:01]} Kf7 {[%emt 0:00:02]} 56. f5 {[%emt 0:00:01]} Bf8 {[%emt 0:00:00]} 57. e6+ {[%emt 0:00:02]} Ke8 {[%emt 0:00:02]} 58. Nd5 {[%emt 0:00:02]} Bd6 {[%emt 0:00:01]} 59. b6 {[%emt 0:00:06]} cxb6 {[%emt 0:00:07]} 60. c7 {[%emt 0:00:01]} Bxc7 {[%emt 0:00:04]} 61. Nxc7+ {[%emt 0:00:00]} Ke7 {[%emt 0:00:02]} 62. Nd5+ {[%emt 0:00:01]} Kd6 {[%emt 0:00:00]} 63. f6 {[%emt 0:00:02]} Nc4 {[%emt 0:00:04]} 64. f7 {[%emt 0:00:02]} Nd2+ {[%emt 0:00:01]} 65. Kd3 {[%emt 0:00:01]} 1-0